[Event "ESTCC-65 2025"]
[Site "Swidnica"]
[Date "2025.04.06"]
[Round "2.2"]
[White "Zyla, Janusz"]
[Black "Kosten, Anthony C."]
[Result "1/2-1/2"]
[Annotator "ChessBase"]
[ECO "C70"]
[WhiteElo "2181"]
[BlackElo "2366"]
[PlyCount "43"]
[EventDate "2025.04.05"]
[EventType "team-tourn"]
[EventCountry "POL"]
[SourceTitle "playchess.com"]
[Source "ChessBase"]
[SourceQuality "1"]
[WhiteTeam "Poland"]
[BlackTeam "England"]
[WhiteTeamCountry "POL"]
[BlackTeamCountry "ENG"]
[TimeControl "40/5400+30:1800+30"]

1. e4 {[%emt 0:00:11]} e5 {[%emt 0:00:07]} 2. Nf3 {[%emt 0:00:11]} Nc6 {[%emt 0:00:08]} 3. Bb5 {[%emt 0:00:22]} a6 {[%emt 0:00:17]} 4. Ba4 {[%emt 0:00:11]} Bc5 {[%emt 0:00:13]} 5. O-O {[%emt 0:09:54]} Nge7 {[%emt 0:00:55]} 6. c3 {[%emt 0:00:48]} Ng6 {[%emt 0:00:19]} 7. d4 {[%emt 0:00:27]} Ba7 {[%emt 0:00:07]} 8. Bg5 {[%emt 0:14:21]} f6 {[%emt 0:00:38]} 9. Be3 {[%emt 0:00:09]} O-O {[%emt 0:00:20]} 10. Nbd2 {[%emt 0:00:31]} d6 {[%emt 0:00:34]} 11. Re1 {[%emt 0:01:35]} Kh8 {[%emt 0:00:42]} 12. Nf1 {[%emt 0:04:32]} exd4 {[%emt 0:11:51]} 13. Nxd4 {[%emt 0:02:38]} Nxd4 {[%emt 0:01:55]} 14. Bxd4 {[%emt 0:02:03]} Bxd4 {[%emt 0:07:59]} 15. Qxd4 {[%emt 0:00:42]} Be6 {[%emt 0:09:56]} 16. Ne3 {[%emt 0:04:09]} Qe7 {[%emt 0:02:54]} 17. Bc2 {[%emt 0:16:09]} Qf7 {[%emt 0:05:22]} 18. b3 {[%emt 0:07:03]} Rad8 {[%emt 0:02:05]} 19. Rad1 {[%emt 0:01:26]} Ne7 {[%emt 0:05:56]} 20. Nd5 {[%emt 0:04:20]} Nxd5 {[%emt 0:24:09]} 21. exd5 {[%emt 0:00:08]} Bd7 {[%emt 0:00:08]} 22. Re3 1/2-1/2

[Event "ESTCC-65 2025"]
[Site "Swidnica"]
[Date "2025.04.06"]
[Round "2.3"]
[White "Large, Peter G"]
[Black "Czajkowski, Ryszard"]
[Result "1-0"]
[Annotator "ChessBase"]
[ECO "C11"]
[WhiteElo "2342"]
[BlackElo "1963"]
[PlyCount "117"]
[EventDate "2025.04.05"]
[EventType "team-tourn"]
[EventCountry "POL"]
[SourceTitle "playchess.com"]
[Source "ChessBase"]
[SourceQuality "1"]
[WhiteTeam "England"]
[BlackTeam "Poland"]
[WhiteTeamCountry "ENG"]
[BlackTeamCountry "POL"]
[TimeControl "40/5400+30:1800+30"]

1. e4 {[%emt 0:00:46]} e6 {[%emt 0:00:06]} 2. d4 {[%emt 0:00:09]} d5 {[%emt 0:00:03]} 3. Nc3 {[%emt 0:00:07]} Nf6 {[%emt 0:00:26]} 4. Bg5 {[%emt 0:01:08]} dxe4 {[%emt 0:00:42]} 5. Nxe4 {[%emt 0:00:08]} Nbd7 {[%emt 0:00:37]} 6. Nf3 {[%emt 0:01:49]} h6 {[%emt 0:01:17]} 7. Nxf6+ {[%emt 0:01:16]} Nxf6 {[%emt 0:01:07]} 8. Be3 {[%emt 0:04:19]} Be7 {[%emt 0:04:05]} 9. Bc4 {[%emt 0:07:07]} O-O {[%emt 0:03:09]} 10. O-O {[%emt 0:07:22]} b6 {[%emt 0:05:05]} 11. Qe2 {[%emt 0:00:30]} Bb7 {[%emt 0:02:12]} 12. Rad1 {[%emt 0:00:10]} Qc8 {[%emt 0:21:33]} 13. Ne5 {[%emt 0:07:25]} Bd5 {[%emt 0:02:02]} 14. Bd3 {[%emt 0:10:46]} c5 {[%emt 0:08:32]} 15. c4 {[%emt 0:01:03]} Bb7 {[%emt 0:14:53]} 16. a3 {[%emt 0:19:52]} Rd8 {[%emt 0:03:58]} 17. Bc2 {[%emt 0:05:27]} cxd4 {[%emt 0:08:33]} 18. Bxd4 {[%emt 0:00:24]} Qc7 {[%emt 0:02:28]} 19. Rfe1 {[%emt 0:03:42]} Bc5 {[%emt 0:02:46]} 20. Bxc5 {[%emt 0:07:38]} Rxd1 {[%emt 0:00:48]} 21. Rxd1 {[%emt 0:00:15]} Qxc5 {[%emt 0:02:07]} 22. b4 {[%emt 0:00:15]} Qc7 {[%emt 0:00:41]} 23. Qe3 {[%emt 0:04:34]} Rd8 {[%emt 0:01:25]} 24. Rd4 {[%emt 0:00:10]} Rxd4 {[%emt 0:05:47]} 25. Qxd4 {[%emt 0:00:08]} Qe7 {[%emt 0:00:47]} 26. f3 {[%emt 0:00:49]} Ne8 {[%emt 0:01:25]} 27. Ba4 {[%emt 0:01:52]} Nd6 {[%emt 0:03:49]} 28. c5 {[%emt 0:07:25]} bxc5 {[%emt 0:01:20]} 29. Qxc5 {[%emt 0:01:21]} Qd8 {[%emt 0:00:36]} 30. Qxa7 {[%emt 0:03:16]} Nf5 {[%emt 0:00:53]} 31. Nd7 {[%emt 0:02:32]} Bc8 {[%emt 0:01:32]} 32. Qa5 {[%emt 0:01:11]} Qh4 {[%emt 0:00:24]} 33. Qe5 {[%emt 0:00:48]} Bxd7 {[%emt 0:00:35]} 34. Bxd7 {[%emt 0:00:04]} Qd8 {[%emt 0:00:39]} 35. Bb5 {[%emt 0:01:05]} Qd2 {[%emt 0:00:22]} 36. Bf1 {[%emt 0:00:59]} Ne3 {[%emt 0:00:35]} 37. Qb8+ {[%emt 0:00:13]} Kh7 {[%emt 0:00:11]} 38. Qb5 {[%emt 0:00:04]} Qc1 {[%emt 0:00:16]} 39. Qd3+ {[%emt 0:00:19]} g6 {[%emt 0:00:09]} 40. a4 {[%emt 0:00:00]} Nxf1 {[%emt 0:00:00]} 41. Qxf1 {[%emt 0:00:45]} Qa3 {[%emt 0:01:57]} 42. a5 {[%emt 0:00:59]} Qxb4 {[%emt 0:00:26]} 43. a6 {[%emt 0:00:08]} h5 {[%emt 0:01:07]} 44. Qa1 {[%emt 0:00:19]} Qb6+ {[%emt 0:00:19]} 45. Kf1 {[%emt 0:00:19]} Qa7 {[%emt 0:00:38]} 46. Qa4 {[%emt 0:03:13]} Kg7 {[%emt 0:01:56]} 47. Ke2 {[%emt 0:05:09]} h4 {[%emt 0:02:43]} 48. Kd3 {[%emt 0:00:26]} e5 {[%emt 0:02:05]} 49. Ke4 {[%emt 0:03:08]} f6 {[%emt 0:07:23]} 50. Kd5 {[%emt 0:01:38]} Qf7+ {[%emt 0:01:23]} 51. Kd6 {[%emt 0:00:45]} Qf8+ {[%emt 0:01:09]} 52. Kd7 {[%emt 0:00:43]} Qc5 {[%emt 0:07:41]} 53. Qc6 {[%emt 0:05:24]} Qd4+ {[%emt 0:00:44]} 54. Ke8 {[%emt 0:03:01]} Kh6 {[%emt 0:04:27]} 55. Qxf6 {[%emt 0:03:11]} Kh5 {[%emt 0:01:07]} 56. g4+ {[%emt 0:04:39]} hxg3 {[%emt 0:00:31]} 57. hxg3 {[%emt 0:00:06]} g5 {[%emt 0:01:49]} 58. Qf7+ {[%emt 0:00:22]} Kh6 {[%emt 0:00:15]} 59. Qe6+ {[%emt 0:00:11]} 1-0

[Event "ESTCC-65 2025"]
[Site "Swidnica"]
[Date "2025.04.06"]
[Round "2.4"]
[White "Krupa, Krzysztof"]
[Black "Baker, Chris W"]
[Result "0-1"]
[Annotator "ChessBase"]
[ECO "B31"]
[WhiteElo "1919"]
[BlackElo "2151"]
[PlyCount "79"]
[EventDate "2025.04.05"]
[EventType "team-tourn"]
[EventCountry "POL"]
[SourceTitle "playchess.com"]
[Source "ChessBase"]
[SourceQuality "1"]
[WhiteTeam "Poland"]
[BlackTeam "England"]
[WhiteTeamCountry "POL"]
[BlackTeamCountry "ENG"]
[TimeControl "40/5400+30:1800+30"]

1. e4 {[%emt 0:00:05]} c5 {[%emt 0:00:11]} 2. Nf3 {[%emt 0:01:49]} Nc6 {[%emt 0:00:42]} 3. Bb5 {[%emt 0:00:24]} g6 {[%emt 0:01:36]} 4. O-O {[%emt 0:00:39]} Bg7 {[%emt 0:01:05]} 5. c3 {[%emt 0:04:43]} Nf6 {[%emt 0:03:25]} 6. Re1 {[%emt 0:00:30]} O-O {[%emt 0:02:06]} 7. d3 {[%emt 0:04:14]} d6 {[%emt 0:07:05]} 8. Bxc6 {[%emt 0:02:07]} bxc6 {[%emt 0:00:13]} 9. e5 {[%emt 0:05:10]} Ng4 {[%emt 0:09:13]} 10. exd6 {[%emt 0:00:21]} exd6 {[%emt 0:01:26]} 11. Bg5 {[%emt 0:08:43]} Nf6 {[%emt 0:06:04]} 12. Nbd2 {[%emt 0:02:04]} Qc7 {[%emt 0:10:31]} 13. Qa4 {[%emt 0:02:33]} h6 {[%emt 0:05:33]} 14. Bh4 {[%emt 0:03:31]} Be6 {[%emt 0:04:55]} 15. d4 {[%emt 0:06:24]} cxd4 {[%emt 0:04:43]} 16. Nxd4 {[%emt 0:00:43]} Bd7 {[%emt 0:01:00]} 17. Qc4 {[%emt 0:08:57]} d5 {[%emt 0:02:10]} 18. Qc5 {[%emt 0:01:47]} Rfe8 {[%emt 0:02:23]} 19. Bg3 {[%emt 0:10:53]} Qb6 {[%emt 0:03:57]} 20. N4b3 {[%emt 0:03:35]} Bf5 {[%emt 0:13:23]} 21. f3 {[%emt 0:14:46]} Bf8 {[%emt 0:02:24]} 22. Qd4 {[%emt 0:01:43]} Nh5 {[%emt 0:05:46]} 23. Bf2 {[%emt 0:01:03]} Qxd4 {[%emt 0:00:40]} 24. Nxd4 {[%emt 0:00:28]} Bd7 {[%emt 0:00:32]} 25. Rxe8 {[%emt 0:04:20]} Rxe8 {[%emt 0:00:15]} 26. Re1 {[%emt 0:01:45]} Rxe1+ {[%emt 0:00:48]} 27. Bxe1 {[%emt 0:00:01]} Nf4 {[%emt 0:00:12]} 28. Bf2 {[%emt 0:02:45]} c5 {[%emt 0:01:01]} 29. N4b3 {[%emt 0:03:55]} Nd3 {[%emt 0:00:17]} 30. c4 {[%emt 0:01:40]} d4 {[%emt 0:01:47]} 31. Ne4 {[%emt 0:00:11]} Be6 {[%emt 0:00:19]} 32. Ned2 {[%emt 0:03:11]} Nxb2 {[%emt 0:00:57]} 33. Na5 {[%emt 0:00:09]} h5 {[%emt 0:02:11]} 34. Bg3 {[%emt 0:00:19]} Bh6 {[%emt 0:00:58]} 35. Ne4 {[%emt 0:00:50]} Nxc4 {[%emt 0:01:16]} 36. Nxc4 {[%emt 0:01:07]} Bxc4 {[%emt 0:00:07]} 37. Nxc5 {[%emt 0:00:59]} d3 {[%emt 0:00:27]} 38. Ne4 {[%emt 0:00:17]} d2 {[%emt 0:00:33]} 39. Nc3 {[%emt 0:00:10]} Be2 {[%emt 0:01:01]} 40. Nb1 0-1

[Event "ESTCC-65 2025"]
[Site "Swidnica"]
[Date "2025.04.06"]
[Round "2.5"]
[White "Vadlja, Stjepan"]
[Black "Rooze, Jan"]
[Result "0-1"]
[Annotator "ChessBase"]
[ECO "B44"]
[WhiteElo "1697"]
[BlackElo "2198"]
[PlyCount "56"]
[EventDate "2025.04.05"]
[EventType "team-tourn"]
[EventCountry "POL"]
[SourceTitle "playchess.com"]
[Source "ChessBase"]
[SourceQuality "1"]
[WhiteTeam "Croatia"]
[BlackTeam "Belgium"]
[WhiteTeamCountry "CRO"]
[BlackTeamCountry "BEL"]
[TimeControl "40/5400+30:1800+30"]

1. e4 {[%emt 0:00:13]} c5 {[%emt 0:00:09]} 2. Nf3 {[%emt 0:00:26]} e6 {[%emt 0:00:12]} 3. d4 {[%emt 0:00:24]} cxd4 {[%emt 0:00:11]} 4. Nxd4 {[%emt 0:00:15]} Nc6 {[%emt 0:00:05]} 5. Be3 {[%emt 0:00:34]} Nf6 {[%emt 0:00:45]} 6. Bd3 {[%emt 0:00:32]} d5 {[%emt 0:01:16]} 7. Nxc6 {[%emt 0:05:51]} bxc6 {[%emt 0:00:22]} 8. Bg5 {[%emt 0:00:55]} h6 {[%emt 0:04:49]} 9. Bh4 {[%emt 0:00:30]} g5 {[%emt 0:11:03]} 10. Bg3 dxe4 11. Be2 Qxd1+ 12. Bxd1 Bg7 13. Bd6 {[%emt 0:05:02]} Nd5 {[%emt 0:08:09]} 14. Ba3 {[%emt 0:00:27]} Ba6 {[%emt 0:05:58]} 15. Be2 {[%emt 0:04:36]} Bxe2 {[%emt 0:00:46]} 16. Kxe2 {[%emt 0:00:20]} Nf4+ {[%emt 0:06:57]} 17. Kf1 O-O-O 18. Ke1 {[%emt 0:03:29]} Nxg2+ {[%emt 0:01:21]} 19. Ke2 {[%emt 0:00:24]} Nf4+ {[%emt 0:00:15]} 20. Ke3 {[%emt 0:00:36]} f5 {[%emt 0:02:04]} 21. Nc3 {[%emt 0:00:36]} Bd4+ {[%emt 0:00:58]} 22. Kd2 {[%emt 0:00:50]} Bxf2+ {[%emt 0:01:35]} 23. Kc1 Be3+ 24. Kb1 {[%emt 0:04:00]} Rd2 {[%emt 0:05:09]} 25. Nd1 {[%emt 0:05:13]} Bb6 {[%emt 0:01:42]} 26. Bb4 {[%emt 0:00:25]} Rd7 {[%emt 0:01:23]} 27. a3 {[%emt 0:00:18]} Rhd8 {[%emt 0:02:31]} 28. Ka2 {[%emt 0:00:28]} e3 {[%emt 0:02:00]} 0-1

[Event "ESTCC-65 2025"]
[Site "Swidnica"]
[Date "2025.04.06"]
[Round "2.6"]
[White "Goormachtigh, Johan"]
[Black "Sobocanec, Alojz"]
[Result "1-0"]
[Annotator "ChessBase"]
[ECO "D30"]
[WhiteElo "2207"]
[BlackElo "1792"]
[PlyCount "79"]
[EventDate "2025.04.05"]
[EventType "team-tourn"]
[EventCountry "POL"]
[SourceTitle "playchess.com"]
[Source "ChessBase"]
[SourceQuality "1"]
[WhiteTeam "Belgium"]
[BlackTeam "Croatia"]
[WhiteTeamCountry "BEL"]
[BlackTeamCountry "CRO"]
[TimeControl "40/5400+30:1800+30"]

1. d4 {[%emt 0:00:08]} d5 2. c4 {[%emt 0:00:19]} e6 {[%emt 0:15:07]} 3. Nf3 {[%emt 0:01:06]} c6 {[%emt 0:00:04]} 4. Nbd2 {[%emt 0:01:23]} Nf6 {[%emt 0:00:25]} 5. g3 {[%emt 0:02:10]} Bd6 {[%emt 0:00:57]} 6. Bg2 {[%emt 0:00:06]} O-O {[%emt 0:00:33]} 7. O-O {[%emt 0:00:06]} Nbd7 {[%emt 0:00:10]} 8. Qc2 {[%emt 0:03:00]} Re8 {[%emt 0:01:21]} 9. b3 {[%emt 0:00:53]} h6 {[%emt 0:03:15]} 10. Bb2 {[%emt 0:00:17]} Rb8 {[%emt 0:00:50]} 11. e4 {[%emt 0:10:47]} dxe4 {[%emt 0:00:10]} 12. Nxe4 {[%emt 0:00:06]} Nxe4 {[%emt 0:00:11]} 13. Qxe4 {[%emt 0:00:08]} Nf6 {[%emt 0:00:06]} 14. Qc2 {[%emt 0:00:30]} Bf8 {[%emt 0:04:23]} 15. Bc3 {[%emt 0:04:06]} Nd7 {[%emt 0:02:06]} 16. Rad1 {[%emt 0:02:46]} Qc7 {[%emt 0:01:15]} 17. Rfe1 {[%emt 0:00:49]} b6 {[%emt 0:04:15]} 18. Qb2 {[%emt 0:08:07]} Bb7 {[%emt 0:01:20]} 19. Re2 {[%emt 0:02:55]} Rbd8 {[%emt 0:01:21]} 20. Rde1 {[%emt 0:00:57]} Qb8 {[%emt 0:02:07]} 21. Nd2 {[%emt 0:06:26]} Qa8 {[%emt 0:02:23]} 22. b4 {[%emt 0:03:04]} Rc8 {[%emt 0:02:17]} 23. a4 {[%emt 0:10:57]} Red8 {[%emt 0:03:52]} 24. Ne4 a6 {[%emt 0:05:04]} 25. Bd2 {[%emt 0:08:30]} Be7 {[%emt 0:09:51]} 26. Bf4 {[%emt 0:02:02]} Nf6 {[%emt 0:02:15]} 27. Be5 {[%emt 0:03:37]} Ne8 {[%emt 0:02:16]} 28. c5 {[%emt 0:01:08]} b5 {[%emt 0:01:48]} 29. h4 {[%emt 0:03:42]} Rd7 {[%emt 0:00:05]} 30. Rc1 {[%emt 0:02:12]} Rcd8 31. axb5 {[%emt 0:01:20]} f6 {[%emt 0:02:17]} 32. Bf4 cxb5 {[%emt 0:03:44]} 33. c6 {[%emt 0:04:45]} Bxc6 {[%emt 0:01:33]} 34. Rxc6 {[%emt 0:01:27]} Qa7 {[%emt 0:02:27]} 35. Nc5 {[%emt 0:03:19]} Bxc5 {[%emt 0:00:51]} 36. dxc5 {[%emt 0:01:26]} e5 {[%emt 0:00:14]} 37. Be3 {[%emt 0:00:07]} Nc7 {[%emt 0:01:27]} 38. Rd6 {[%emt 0:00:20]} Rxd6 {[%emt 0:00:30]} 39. cxd6 {[%emt 0:00:00]} Rxd6 {[%emt 0:00:00]} 40. Bxa7 {[%emt 0:00:00]} 1-0

[Event "ESTCC-65 2025"]
[Site "Swidnica"]
[Date "2025.04.06"]
[Round "2.7"]
[White "Novak, Stjepan"]
[Black "Stuer, Marc"]
[Result "0-1"]
[Annotator "ChessBase"]
[ECO "B24"]
[WhiteElo "1671"]
[BlackElo "2038"]
[PlyCount "180"]
[EventDate "2025.04.05"]
[EventType "team-tourn"]
[EventCountry "POL"]
[SourceTitle "playchess.com"]
[Source "ChessBase"]
[SourceQuality "1"]
[WhiteTeam "Croatia"]
[BlackTeam "Belgium"]
[WhiteTeamCountry "CRO"]
[BlackTeamCountry "BEL"]
[TimeControl "40/5400+30:1800+30"]

1. e4 {[%emt 0:00:18]} c5 {[%emt 0:00:05]} 2. Nc3 {[%emt 0:00:32]} Nc6 {[%emt 0:00:14]} 3. Nf3 {[%emt 0:00:33]} e5 {[%emt 0:00:31]} 4. Bc4 {[%emt 0:01:02]} Be7 {[%emt 0:00:43]} 5. d3 {[%emt 0:01:08]} Nf6 {[%emt 0:00:32]} 6. Nd5 {[%emt 0:03:44]} O-O {[%emt 0:01:05]} 7. Nxe7+ {[%emt 0:02:23]} Qxe7 {[%emt 0:00:26]} 8. Bg5 {[%emt 0:00:25]} d6 {[%emt 0:01:42]} 9. Bxf6 {[%emt 0:00:32]} Qxf6 {[%emt 0:00:15]} 10. h3 {[%emt 0:00:20]} Ne7 {[%emt 0:08:48]} 11. Qd2 {[%emt 0:00:54]} h6 {[%emt 0:01:57]} 12. Nh2 {[%emt 0:02:00]} Ng6 {[%emt 0:03:39]} 13. Ng4 {[%emt 0:07:03]} Qf4 {[%emt 0:07:38]} 14. O-O-O {[%emt 0:02:46]} Be6 {[%emt 0:10:19]} 15. Ne3 {[%emt 0:03:55]} Rab8 {[%emt 0:24:18]} 16. Nd5 {[%emt 0:11:22]} Qxd2+ 17. Rxd2 {[%emt 0:00:28]} b5 {[%emt 0:03:44]} 18. Bb3 {[%emt 0:00:43]} Rfc8 {[%emt 0:00:47]} 19. c4 {[%emt 0:01:13]} Bxd5 {[%emt 0:01:38]} 20. exd5 {[%emt 0:02:02]} f5 {[%emt 0:04:34]} 21. cxb5 {[%emt 0:01:06]} Ne7 {[%emt 0:01:11]} 22. Bc4 {[%emt 0:00:34]} f4 {[%emt 0:00:41]} 23. g4 {[%emt 0:00:29]} fxg3 {[%emt 0:00:23]} 24. fxg3 {[%emt 0:00:03]} Rf8 {[%emt 0:00:21]} 25. g4 {[%emt 0:01:27]} Ng6 {[%emt 0:01:32]} 26. b3 {[%emt 0:06:34]} Nh4 {[%emt 0:03:31]} 27. Re2 {[%emt 0:03:47]} Rf4 {[%emt 0:02:31]} 28. Re3 {[%emt 0:10:09]} Rf2 {[%emt 0:03:06]} 29. a4 {[%emt 0:03:17]} Rbf8 {[%emt 0:01:12]} 30. a5 {[%emt 0:02:50]} Ra2 {[%emt 0:00:59]} 31. Rxe5 {[%emt 0:00:36]} dxe5 {[%emt 0:01:44]} 32. Kb1 {[%emt 0:00:39]} Rxa5 {[%emt 0:05:30]} 33. d6+ {[%emt 0:00:26]} Kh8 {[%emt 0:00:04]} 34. Kb2 {[%emt 0:00:31]} Rd8 {[%emt 0:01:44]} 35. b4 {[%emt 0:02:22]} cxb4 {[%emt 0:00:59]} 36. Kb3 {[%emt 0:00:12]} a6 {[%emt 0:02:34]} 37. Kxb4 {[%emt 0:00:17]} Rxb5+ {[%emt 0:00:13]} 38. Bxb5 {[%emt 0:00:07]} axb5 {[%emt 0:00:24]} 39. Kc5 {[%emt 0:00:15]} Nf3 {[%emt 0:01:25]} 40. Kd5 {[%emt 0:00:00]} Ng5 {[%emt 0:00:00]} 41. Rf1 {[%emt 0:03:30]} Kg8 {[%emt 0:01:56]} 42. Kc6 {[%emt 0:02:25]} Nf7 {[%emt 0:19:30]} 43. d7 {[%emt 0:04:08]} e4 {[%emt 0:04:15]} 44. Kc7 {[%emt 0:02:08]} exd3 {[%emt 0:03:44]} 45. h4 {[%emt 0:06:21]} Ra8 {[%emt 0:08:39]} 46. Kb7 {[%emt 0:08:41]} Rf8 {[%emt 0:00:35]} 47. Kc7 {[%emt 0:00:43]} Nd8 {[%emt 0:01:12]} 48. Rd1 {[%emt 0:00:44]} Ne6+ {[%emt 0:00:21]} 49. Kd6 {[%emt 0:00:33]} Nf4 {[%emt 0:00:23]} 50. g5 {[%emt 0:00:21]} hxg5 {[%emt 0:00:44]} 51. hxg5 {[%emt 0:00:01]} Ra8 {[%emt 0:00:41]} 52. Rc1 {[%emt 0:01:44]} Ra6+ {[%emt 0:00:45]} 53. Ke5 {[%emt 0:02:40]} Ng6+ {[%emt 0:00:14]} 54. Kf5 {[%emt 0:01:12]} Ne7+ {[%emt 0:00:22]} 55. Kg4 {[%emt 0:00:17]} Ra8 {[%emt 0:00:15]} 56. Rd1 {[%emt 0:00:32]} Nc6 {[%emt 0:00:52]} 57. Kf5 {[%emt 0:01:47]} Kf7 {[%emt 0:00:27]} 58. Rxd3 {[%emt 0:03:13]} g6+ {[%emt 0:00:13]} 59. Ke4 {[%emt 0:01:02]} Ke7 {[%emt 0:00:11]} 60. Rd5 {[%emt 0:01:40]} b4 {[%emt 0:00:25]} 61. Kd3 {[%emt 0:01:51]} Rd8 {[%emt 0:00:24]} 62. Kc4 {[%emt 0:01:29]} Rxd7 {[%emt 0:00:36]} 63. Rb5 {[%emt 0:01:04]} Kd6 {[%emt 0:01:18]} 64. Rd5+ {[%emt 0:00:26]} Kc7 {[%emt 0:00:13]} 65. Rc5 {[%emt 0:00:09]} Rf7 {[%emt 0:01:03]} 66. Kb3 {[%emt 0:00:44]} Rf3+ {[%emt 0:00:23]} 67. Kb2 {[%emt 0:00:36]} Kd6 {[%emt 0:00:25]} 68. Rc2 {[%emt 0:00:30]} Rg3 {[%emt 0:00:22]} 69. Rf2 {[%emt 0:00:12]} Rxg5 {[%emt 0:00:18]} 70. Rf6+ {[%emt 0:00:11]} Kc5 {[%emt 0:00:10]} 71. Rf8 {[%emt 0:00:17]} Rg2+ {[%emt 0:00:26]} 72. Kb1 {[%emt 0:00:16]} Nd4 {[%emt 0:00:36]} 73. Rc8+ {[%emt 0:00:13]} Kb5 {[%emt 0:00:13]} 74. Rc1 {[%emt 0:01:21]} Ka4 {[%emt 0:00:19]} 75. Rd1 {[%emt 0:00:53]} Ne2 {[%emt 0:00:50]} 76. Ka1 {[%emt 0:00:21]} Nc3 {[%emt 0:00:13]} 77. Rd2 {[%emt 0:00:24]} Rg1+ {[%emt 0:00:21]} 78. Kb2 {[%emt 0:00:03]} Ne4 {[%emt 0:00:55]} 79. Rc2 {[%emt 0:00:26]} Rf1 {[%emt 0:00:27]} 80. Rc6 {[%emt 0:00:24]} Rf2+ {[%emt 0:00:16]} 81. Kc1 {[%emt 0:00:49]} Kb3 {[%emt 0:00:21]} 82. Kd1 {[%emt 0:00:18]} Nc3+ {[%emt 0:00:23]} 83. Ke1 {[%emt 0:00:23]} Rg2 {[%emt 0:00:18]} 84. Kf1 {[%emt 0:00:09]} Rg4 {[%emt 0:00:24]} 85. Kf2 {[%emt 0:00:30]} Kc2 {[%emt 0:00:30]} 86. Kf3 {[%emt 0:00:17]} Rg5 {[%emt 0:00:17]} 87. Ke3 {[%emt 0:00:38]} b3 {[%emt 0:01:11]} 88. Kd4 {[%emt 0:00:32]} Rg4+ {[%emt 0:00:28]} 89. Ke3 {[%emt 0:00:09]} b2 {[%emt 0:00:24]} 90. Rb6 {[%emt 0:00:09]} b1=Q {[%emt 0:00:45]} 0-1

[Event "ESTCC-65 2025"]
[Site "Swidnica"]
[Date "2025.04.06"]
[Round "2.8"]
[White "Van Herck, Marcel"]
[Black "Petanjek, Zvonko"]
[Result "1-0"]
[Annotator "NA"]
[ECO "D06"]
[WhiteElo "1962"]
[BlackElo "1732"]
[PlyCount "95"]
[EventDate "2025.04.05"]
[EventType "team-tourn"]
[EventCountry "POL"]
[SourceTitle "playchess.com"]
[Source "ChessBase"]
[SourceQuality "1"]
[WhiteTeam "Belgium"]
[BlackTeam "Croatia"]
[WhiteTeamCountry "BEL"]
[BlackTeamCountry "CRO"]
[TimeControl "40/5400+30:1800+30"]

1. d4 {[%emt 0:00:12]} d5 {[%emt 0:00:08]} 2. c4 {[%emt 0:00:16]} Nf6 {[%emt 0:00:31]} 3. cxd5 {[%emt 0:00:15]} h6 {[%emt 0:02:39]} 4. Nf3 {[%emt 0:00:22]} Nxd5 {[%emt 0:01:55]} 5. e4 {[%emt 0:00:16]} Nf6 {[%emt 0:00:43]} 6. Nc3 {[%emt 0:00:18]} Bg4 {[%emt 0:00:28]} 7. Be3 {[%emt 0:05:43]} e6 {[%emt 0:00:26]} 8. Be2 {[%emt 0:20:37]} c6 {[%emt 0:00:27]} 9. O-O {[%emt 0:00:46]} Be7 {[%emt 0:00:29]} 10. Qc2 {[%emt 0:06:12]} O-O {[%emt 0:00:30]} 11. Rfd1 {[%emt 0:00:25]} Qc8 {[%emt 0:01:02]} 12. Rac1 {[%emt 0:00:39]} Nbd7 {[%emt 0:00:34]} 13. Qb3 {[%emt 0:04:20]} Nb6 {[%emt 0:00:54]} 14. a4 {[%emt 0:01:01]} Rd8 {[%emt 0:09:14]} 15. a5 {[%emt 0:02:07]} Nbd7 {[%emt 0:02:00]} 16. h3 {[%emt 0:02:34]} Bh5 {[%emt 0:00:36]} 17. Bf4 {[%emt 0:02:39]} Nb8 {[%emt 0:03:23]} 18. d5 {[%emt 0:01:40]} c5 {[%emt 0:02:14]} 19. d6 {[%emt 0:03:09]} Bf8 {[%emt 0:00:27]} 20. e5 {[%emt 0:00:20]} Nfd7 {[%emt 0:01:42]} 21. Ne4 {[%emt 0:14:36]} Na6 {[%emt 0:00:55]} 22. Qc4 {[%emt 0:05:03]} Nb4 {[%emt 0:05:36]} 23. g4 {[%emt 0:01:59]} Bg6 {[%emt 0:00:16]} 24. Nxc5 {[%emt 0:01:01]} Qxc5 {[%emt 0:00:23]} 25. Qxc5 {[%emt 0:00:08]} Nxc5 {[%emt 0:00:06]} 26. Rxc5 {[%emt 0:00:03]} Nd5 {[%emt 0:01:08]} 27. Bg3 {[%emt 0:01:02]} Be4 {[%emt 0:03:57]} 28. Nd2 {[%emt 0:03:21]} Bg6 {[%emt 0:00:14]} 29. Bf3 {[%emt 0:00:20]} Rac8 {[%emt 0:00:29]} 30. Rdc1 {[%emt 0:00:24]} Rxc5 {[%emt 0:00:11]} 31. Rxc5 {[%emt 0:00:06]} b6 {[%emt 0:00:23]} 32. axb6 {[%emt 0:01:21]} axb6 {[%emt 0:00:12]} 33. Rc6 {[%emt 0:00:23]} b5 {[%emt 0:02:02]} 34. Bxd5 {[%emt 0:00:11]} exd5 {[%emt 0:00:21]} 35. f4 {[%emt 0:02:29]} f6 {[%emt 0:00:46]} 36. Rc5 {[%emt 0:02:40]} Be8 {[%emt 0:00:28]} 37. Rxd5 {[%emt 0:00:33]} Bc6 {[%emt 0:01:24]} 38. Rc5 {[%emt 0:01:30]} Bd7 {[%emt 0:00:08]} 39. Rc7 {[%emt 0:00:33]} Kf7 {[%emt 0:00:17]} 40. Ne4 {[%emt 0:00:00]} fxe5 {[%emt 0:00:00]} 41. fxe5 {[%emt 0:01:38]} Ke8 {[%emt 0:01:28]} 42. Kf2 {[%emt 0:02:10]} Rc8 {[%emt 0:00:32]} 43. Rxc8+ {[%emt 0:00:07]} Bxc8 {[%emt 0:00:10]} 44. Nc5 {[%emt 0:00:17]} g5 {[%emt 0:00:56]} 45. e6 {[%emt 0:01:13]} Bg7 {[%emt 0:00:12]} 46. d7+ {[%emt 0:00:09]} Bxd7 {[%emt 0:00:15]} 47. exd7+ {[%emt 0:00:04]} Kd8 {[%emt 0:00:03]} 48. Ne6+ {[%emt 0:00:04]} 1-0

[Event "ESTCC-65 2025"]
[Site "Swidnica"]
[Date "2025.04.06"]
[Round "2.9"]
[White "Quinn, John M"]
[Black "Westerinen, Heikki M.J."]
[Result "1/2-1/2"]
[Annotator "ChessBase"]
[ECO "E90"]
[WhiteElo "2073"]
[BlackElo "2209"]
[PlyCount "43"]
[EventDate "2025.04.05"]
[EventType "team-tourn"]
[EventCountry "POL"]
[SourceTitle "playchess.com"]
[Source "ChessBase"]
[SourceQuality "1"]
[WhiteTeam "England"]
[BlackTeam "Finland"]
[WhiteTeamCountry "ENG"]
[BlackTeamCountry "FIN"]
[TimeControl "40/5400+30:1800+30"]

1. d4 {[%emt 0:00:03]} Nf6 {[%emt 0:00:22]} 2. c4 {[%emt 0:00:07]} g6 {[%emt 0:00:17]} 3. Nc3 {[%emt 0:00:07]} Bg7 {[%emt 0:00:11]} 4. e4 {[%emt 0:00:10]} d6 {[%emt 0:00:11]} 5. Nf3 {[%emt 0:00:07]} O-O {[%emt 0:00:49]} 6. h3 {[%emt 0:00:05]} e5 {[%emt 0:07:58]} 7. d5 {[%emt 0:00:16]} Na6 {[%emt 0:02:29]} 8. Bg5 {[%emt 0:00:59]} h6 {[%emt 0:02:03]} 9. Be3 {[%emt 0:00:07]} Nc5 {[%emt 0:00:55]} 10. Nd2 {[%emt 0:00:26]} a5 {[%emt 0:00:40]} 11. g4 {[%emt 0:00:10]} Bd7 {[%emt 0:03:45]} 12. Be2 {[%emt 0:05:46]} Nh7 {[%emt 0:06:07]} 13. h4 {[%emt 0:09:02]} f5 {[%emt 0:02:16]} 14. gxf5 {[%emt 0:18:14]} gxf5 {[%emt 0:00:13]} 15. Qc2 {[%emt 0:00:19]} c6 {[%emt 0:08:02]} 16. Bxc5 {[%emt 0:10:11]} dxc5 {[%emt 0:00:10]} 17. O-O-O {[%emt 0:01:02]} Nf6 {[%emt 0:11:26]} 18. dxc6 {[%emt 0:13:20]} Bxc6 {[%emt 0:03:41]} 19. Rhg1 {[%emt 0:00:13]} Qe7 {[%emt 0:10:19]} 20. Nd5 {[%emt 0:06:19]} Qf7 {[%emt 0:12:12]} 21. Rg2 {[%emt 0:02:07]} Kh8 {[%emt 0:00:39]} 22. Rdg1 {[%emt 0:03:16]} 1/2-1/2